Cogmind - Beta 16 --- EXPLORER MODE // 2026.01.06 @ 11:29:32 Player: K.K.Y. Result: Destroyed by I8-62U(R) with Subdweller Machine Gun Performance ------------- Evolutions (0) 0 Regions Visited (3) 600 Robots Destroyed (39) 195 Value Destroyed (784) 784 Prototype IDs (4) 80 Alien Tech Used (0) 0 Bonus (-26) -26 TOTAL SCORE: 1633 Bonus ------- Follower Combat Kills 66 Friendly Fire -92 Cogmind --------- Core Integrity 0/250 Matter 203/300 Energy 134/150 System Corruption 0% Temperature Cool (0) Movement Walking (210) Ox1 Location -10/Subcaves Parts ------- > --- POWER (1) -------- Light Angular Momentum Engine > --- PROPULSION (2) --- Makeshift Leg Makeshift Leg > --- UTILITY (3) ------ High-capacity Storage Unit Structural Scanner Core Shielding > --- WEAPON (2) ------- Beam Cannon Slug Cannon > --- INVENTORY (20) --- Improved Ion Engine Makeshift Power Source Light Treads Combat Airjet Improved Heat Sink Medium Storage Unit Humpback Light Armor Plating Makeshift System Shield Beam Rifle Autobeam Subdweller Beam Cannon Heavy Assault Rifle Mining Laser Multitool Peak State ------------ > --- POWER ------------ Light Angular Momentum Engine > --- PROPULSION ------- Makeshift Leg Makeshift Leg > --- UTILITY ---------- High-capacity Storage Unit Core Shielding Light Armor Plating > --- WEAPON ----------- Beam Cannon Slug Cannon > --- INVENTORY -------- Improved Ion Engine Makeshift Power Source Light Treads Combat Airjet Improved Heat Sink Medium Storage Unit Humpback Structural Scanner Makeshift System Shield Beam Rifle Autobeam Subdweller Beam Cannon Heavy Assault Rifle Mining Laser Multitool [Rating: 24] Favorites ----------- Power Ion Engine Engine Ion Engine Propulsion Light Treads Treads Light Treads Leg Makeshift Leg Hover Unit Combat Airjet Utility High-capacity Storage Unit Device Structural Scanner Storage High-capacity Storage Unit Processor Targeting Computer Protection Light Armor Plating Weapon Beam Cannon Energy Gun Medium Laser Energy Cannon Beam Cannon Ballistic Gun Assault Rifle Ballistic Cannon Slug Cannon Special Weapon Mining Laser Build | -11 -10 -10 -10 ------- Run | Yrd Mat Min Sub Slots Evolved 1 | . 1 . . Power . | . . . . Propulsion . | . . . . Utility 1 | . 1 . . Weapon . | . . . . Parts Attached 23 | 7 3 6 7 Power 3 | 1 . 1 1 Engine 3 | 1 . 1 1 Core . | . . . . Reactor . | . . . . Propulsion 8 | 2 2 1 3 Treads 4 | 2 2 . . Leg 3 | . . . 3 Wheel . | . . . . Hover 1 | . . 1 . Flight . | . . . . Utility 6 | 2 . 1 3 Device 1 | . . . 1 Storage 1 | . . 1 . Processor 1 | 1 . . . Hackware . | . . . . Protection 3 | 1 . . 2 Artifact . | . . . . Weapon 6 | 2 1 3 . Energy Gun 2 | 1 . 1 . Energy Cannon 1 | . . 1 . Ballistic Gun 1 | 1 . . . Ballistic Cannon 1 | . . 1 . Launcher . | . . . . Special Weapon 1 | . 1 . . Impact Weapon . | . . . . Slashing Weapon . | . . . . Piercing Weapon . | . . . . Special Melee Weapon . | . . . . Unidentified Prototypes . | . . . . Parts Lost 8 | . . 7 1 Power 2 | . . 2 . Propulsion 3 | . . 2 1 Utility 2 | . . 2 . Weapon 1 | . . 1 . Highest Loss Streak 6 | . . 6 1 To Critical Strikes . | . . . . Average Backups 8 | 1 3 6 13 Power . | . . . 2 Propulsion . | . . . 1 Utility 4 | . 1 4 5 Weapon 2 | . 1 2 3 Tool/Special . | . . . . Unused Backups 12 | . . . 12 Power 2 | . . . 2 Propulsion 1 | . . . 1 Utility 4 | . . . 4 Weapon 4 | . . . 4 Tool/Special 1 | . . . 1 Average Slot Usage (%) 67 | . 87 59 59 Engine 5 | . 12 5 . Treads 9 | . 25 7 . Leg 4 | . . . 13 Hover 4 | . . 7 5 Storage 6 | . . 6 12 Processor 4 | . 12 3 . Protection 5 | . 12 3 2 Energy Gun 4 | . 12 3 . Energy Cannon 7 | . . 8 12 Ballistic Gun 4 | . 11 5 . Ballistic Cannon 6 | . . 6 12 Peak Build Rating 24 | 7 7 13 24 Average Rating 11 | 5 7 9 15 On Entrance 6 | . 7 7 12 Avg Prop Armor Cover (%) . | . . . . Naked Turns . | . . . . Heaviest Build 61 | 12 12 50 61 Greatest Support 40 | 40 40 40 40 Greatest Overweight (x) 4 | . . 4 4 Average Overweight (x) 1 | . . 1 2 Largest Inventory Capacity 20 | 5 5 20 20 Average Capacity 13 | 5 5 12 20 Most Carried 19 | 4 5 9 19 Average Carried 8 | 1 3 6 13 Final Capacity 20 | 5 5 20 20 Final Carried 16 | 2 5 9 16 Class Distribution -------------------- 100% | Hacker-Mutant Dominant Class ---------------- Hacker-Mutant | -10/Materials Hacker-Mutant | -10/Mines Hacker-Mutant | -10/Subcaves Resources | -11 -10 -10 -10 ----------- Run | Yrd Mat Min Sub Matter Collected 897 | 285 181 217 214 Remotely . | . . . . Salvage Created 1327 | 106 487 419 315 Parts 75 | 3 31 11 30 Haulers Intercepted 2 | . 2 . . Recyclers Shooed 2 | . 1 1 . Parts Field Recycled . | . . . . Retrieved Matter . | . . . . Parts Self-Destructed . | . . . . Prevented . | . . . . Parts Restored . | . . . . Kills | -11 -10 -10 -10 ------- Run | Yrd Mat Min Sub Combat Hostiles Destroyed 35 | . 9 15 11 Guns 19 | . 9 10 . Cannons 16 | . . 5 11 Classes Destroyed 12 | 2 5 1 4 Worker 3 | . 3 . . Tunneler 2 | 1 . 1 . Hauler 2 | . 2 . . Recycler 3 | 1 . 2 . Turret 2 | . . . 2 Watcher 3 | . 3 . . Swarmer 8 | . 4 . 4 Grunt 7 | . 5 2 . Artisan 1 | . . . 1 Subdweller 7 | . . . 7 Zionite 2 | . . . 2 Assembled 13 | . . 13 . Best Kill Streak 12 | 2 4 12 6 Combat Bots Only 12 | . 2 12 4 Max Kills in Single Turn 1 | 1 1 1 1 Gunslinging . | . . . . Exploded . | . . . . Melee . | . . . . Uniques/NPCs Destroyed . | . . . . Combat | -11 -10 -10 -10 -------- Run | Yrd Mat Min Sub Hostile Shots Fired 191 | . 32 96 63 Missed 44 | . 7 19 18 Hits 147 | . 25 77 45 Melee 8 | . . 8 . Projectile 139 | . 25 69 45 Part Disruptions 1 | . . 1 . Damage Taken 1205 | . 193 730 282 Core 260 | . 26 182 52 Absorbed by Shields . | . . . . Redirected to Shielding 3 | . . . 3 Ignored by Resistances 749 | . 124 447 178 Core Remaining (%) 100 | 100 . . . Volleys Fired 148 | 5 48 54 41 Largest 2 | 2 2 2 2 Hottest 150 | 70 150 100 100 Shots Fired 280 | 10 96 92 82 Gun 172 | 10 95 67 . Cannon 107 | . . 25 82 Launcher . | . . . . Special 1 | . 1 . . Kinetic 137 | 5 47 44 41 Thermal 143 | 5 49 48 41 Explosive . | . . . . Electromagnetic . | . . . . Robot Hit Streak 35 | 8 17 26 35 Robot Miss Streak 2 | 1 2 1 2 Penetration Max . | . . . . Secondary Targets 3 | . 1 2 . Max Gunslinging Chain 1 | . 1 1 . Shots Hit Robots 219 | 9 73 83 54 Core Hits 81 | 3 25 32 21 Critical Kills 1 | . . 1 . Critical Parts Destroyed 1 | . . 1 . Critical Strikes 13 | 1 6 5 1 Burn 10 | 1 6 3 . Destroy 3 | . . 2 1 Melee Attacks . | . . . . Impact . | . . . . Slashing . | . . . . Piercing . | . . . . Sneak Attacks . | . . . . Combat Hostiles . | . . . . Follow-up Attacks . | . . . . Damage Inflicted 3508 | 113 972 1266 1157 Guns 1861 | 113 972 776 . Cannons 1647 | . . 490 1157 Explosions . | . . . . Melee . | . . . . Ramming . | . . . . Kinetic 1768 | 64 445 590 669 Thermal 1740 | 49 527 676 488 Explosive . | . . . . Electromagnetic . | . . . . Impact . | . . . . Slashing . | . . . . Piercing . | . . . . Highest Corruption . | . . . . Average Corruption . | . . . . Corruption Purged . | . . . . Corruption Blocked . | . . . . Overload Shots . | . . . . Overflow Damage 51 | . . 31 20 Projectiles 51 | . . 31 20 Explosions . | . . . . Melee . | . . . . Knockbacks 4 | . . . 4 Impact . | . . . . Kinetic 4 | . . . 4 Secondary . | . . . . Self-Inflicted Damage . | . . . . Shots . | . . . . Rammed . | . . . . Targets Rammed . | . . . . Kicked . | . . . . Crushed . | . . . . Highest Temperature 384 | 72 216 384 6 Average Temperature 111 | 31 58 177 6 Received Heat Transfer 577 | . 132 334 111 Effects 8 | . 1 7 . Shutdowns 1 | . . 1 . Energy Bleed 4 | . 1 3 . Interference 1 | . . 1 . Matter Decay 1 | . . 1 . Short Circuit 1 | . . 1 . Siege Activations . | . . . . Martial Activations . | . . . . Shielding Activations . | . . . . Robots Disrupted . | . . . . Combat Hostiles . | . . . . Robots Corrupted . | . . . . Combat Hostiles . | . . . . Parts Fried . | . . . . Impact Corruptions . | . . . . Robots Melted 1 | . 1 . . Combat Hostiles . | . . . . Parts Melted 5 | . 3 2 . Heat Transferred 5045 | 222 1998 1813 1012 Parts Sabotaged . | . . . . Parts Stolen . | . . . . Parts Stripped . | . . . . Power Chain Reactions . | . . . . Alert | -11 -10 -10 -10 ------- Run | Yrd Mat Min Sub Maximum Alert Level . | . . . . Low Security (%) 100 | 100 100 100 . Level 1 . | . . . . Level 2 . | . . . . Level 3 . | . . . . Level 4 . | . . . . Level 5 . | . . . . High Security . | . . . . Max Security . | . . . . Peak Influence 55 | 10 55 50 . Initial . | . . . . Average 4 | . 6 1 . Influence Increases 580 | 10 285 105 180 Destroy 0b10 Robot/C 380 | . 180 80 120 Destroy 0b10 Robot/NC 65 | 10 40 15 . Destroy Leader 60 | . 50 10 . Successful Hack 13 | . 13 . . Destroy Structure 2 | . 2 . . Lose Combat Pursuer 60 | . . . 60 Influence Decreases 580 | 10 285 105 180 Time Decay 580 | 10 285 105 180 Squads Dispatched . | . . . . Investigation . | . . . . Extermination . | . . . . Reinforcement . | . . . . Assault . | . . . . Garrison . | . . . . Intercept . | . . . . Searches Triggered . | . . . . Construction Impeded . | . . . . Haulers Reinforced . | . . . . Active Scanning Responses . | . . . . Cargo Convoy Interrupts . | . . . . Stealth | -11 -10 -10 -10 --------- Run | Yrd Mat Min Sub Distress Signals . | . . . . Communications Jammed . | . . . . Distress Signals . | . . . . Times Spotted 47 | . 13 21 13 Peak Tracking Total 5 | . 3 5 3 Tactical Retreats 5 | . . 3 2 Traps | -11 -10 -10 -10 ------- Run | Yrd Mat Min Sub Traps Triggered 1 | . 1 . . Indirectly . | . . . . Trap Hack Attempts . | . . . . Triggered . | . . . . Disarmed . | . . . . Reprogrammed . | . . . . Reused . | . . . . Traps Extracted . | . . . . Installed . | . . . . Triggered . | . . . . Machines | -11 -10 -10 -10 ---------- Run | Yrd Mat Min Sub Machines Disabled 3 | . . 1 2 Max in Single Turn 1 | . . . 1 Machines Repaired . | . . . . Machines Dismantled . | . . . . Machines Sabotaged . | . . . . Overloaded Fab Kills . | . . . . Hacking | -11 -10 -10 -10 --------- Run | Yrd Mat Min Sub Machines Accessed 7 | . 7 . . Terminals 7 | . 7 . . Fabricators . | . . . . Repair Stations . | . . . . Recycling Units . | . . . . Scanalyzers . | . . . . Garrison Access . | . . . . Total Hacks 12 | . 12 . . Successful 11 | . 11 . . Failed 1 | . 1 . . Catastrophic 1 | . 1 . . Database Lockouts . | . . . . Manual 10 | . 10 . . Terminals 12 | . 12 . . Fabricators . | . . . . Repair Stations . | . . . . Recycling Units . | . . . . Scanalyzers . | . . . . Garrison Access . | . . . . Terminal Hacks 4 | . 4 . . Robot Analysis 1 | . 1 . . Prototype ID Bank 3 | . 3 . . Fabricator Hacks . | . . . . Repair Station Hacks . | . . . . Recycling Unit Hacks . | . . . . Scanalyzer . | . . . . Garrison Access Hacks . | . . . . Unauthorized Hacks 7 | . 7 . . Terminals 7 | . 7 . . Botnet 7 | . 7 . . Fabricators . | . . . . Repair Stations . | . . . . Recycling Units . | . . . . Scanalyzers . | . . . . Garrison Access . | . . . . Data Cores Recovered . | . . . . Used . | . . . . Hacking Detections 3 | . 3 . . Full Trace Events 1 | . 1 . . Feedback Events . | . . . . Feedback Blocked . | . . . . Robot Schematics Acquired . | . . . . Robots Built . | . . . . Authchips . | . . . . Time . | . . . . Total Robot Build Rating . | . . . . Part Schematics Acquired . | . . . . Parts Built . | . . . . Authchips . | . . . . Time . | . . . . Total Part Build Rating . | . . . . Part Studies Acquired . | . . . . Parts Repaired . | . . . . Time . | . . . . Parts Recycled . | . . . . Recycled Matter . | . . . . Retrieved Matter . | . . . . Retrieved Components . | . . . . Parts Scanalyzed . | . . . . Part Schematics Acquired . | . . . . Parts Damaged . | . . . . Bothacking | -11 -10 -10 -10 ------------ Run | Yrd Mat Min Sub Used RIF Installer . | . . . . Robots Hacked . | . . . . Non-combat . | . . . . Combat . | . . . . Robot Hacks Applied . | . . . . Relay Couplers Released . | . . . . Fabnet Peak Effective % . | . . . . Robots Rewired . | . . . . Allies Hacked . | . . . . Hacks Repelled . | . . . . Allies | -11 -10 -10 -10 -------- Run | Yrd Mat Min Sub Total Allies 2 | . . 2 . Largest Group 2 | . . 2 2 Highest-Rated Group 41 | . . 41 41 Highest-Rated Ally 31 | . . 31 31 Total Orders . | . . . . Ally Attacks 14 | . . 6 8 Total Damage 187 | . . 81 106 Kills 2 | . . 2 . Allies Corrupted . | . . . . Allies Melted . | . . . . Intel | -11 -10 -10 -10 ------- Run | Yrd Mat Min Sub Active Infowar (turns) 59 | . . . 59 Structural 59 | . . . 59 Robot Analysis Total 1 | . 1 . . Derelict Logs Recovered . | . . . . Drone Launches . | . . . . Drone Recoveries . | . . . . Exploration | -11 -10 -10 -10 ------------- Run | Yrd Mat Min Sub Turns Passed 4644 | 120 1228 1572 1724 Spaces Moved 1949 | 61 613 698 577 Core 50 | 7 . 43 . Treads 889 | 54 613 222 . Legs 380 | . . . 380 Wheels . | . . . . Hover 630 | . . 433 197 Flight . | . . . . Fastest Speed 50 | 50 160 80 210 Average Speed 203 | 147 160 199 261 Slowest Speed 360 | 160 160 360 360 Overloaded Moves . | . . . . Propulsion Burnouts . | . . . . Robots Hopped . | . . . . Potential Cave-ins . | . . . . Cave-ins Triggered . | . . . . Exploration Rate (%) 59 | 6 92 95 44 Regions Visited 3 Branch Regions 2 Pre-discovered Areas 1 | . . . 1 Known Exits Taken 3 | 1 1 1 . Unknown Exits Taken . | . . . . Scrap Searched 4 | . . 1 3 Spaces Dug 1 | . 1 . . Terrain Destroyed 6 | . 1 . 5 Melee . | . . . . Projectile 6 | . 1 . 5 AOE . | . . . . Terrain Rammed . | . . . . Walls Destroyed . | . . . . Machines Disabled . | . . . . Actions | -11 -10 -10 -10 --------- Run | Yrd Mat Min Sub Total 2345 | 81 762 788 714 Wait 195 | . 93 25 77 Move 1946 | 60 612 697 577 Hop . | . . . . Pick Up 29 | 9 3 6 11 Fast Attach 2 | . . 2 . Attach 15 | 7 . 2 6 Detach 1 | . . . 1 Swap 7 | . 4 2 1 Drop 2 | . 2 . . Fire 148 | 5 48 54 41 Melee . | . . . . Ram . | . . . . Kick . | . . . . Crush . | . . . . Escape Stasis . | . . . . Rewire . | . . . . Trap . | . . . . Miscellaneous . | . . . . Route ------- -11/Scrapyard -10/Materials (discovered 4 exits: *Mat x3 / *Min) -10/Mines (discovered 3 exits: *Mat x2 / *Sub) -10/Subcaves (discovered 2 exits: *Mat / *Rec) History --------- Turn | Location | Event 5 | -11/Scrapyard | Identified exit to Materials 5 | -11/Scrapyard | Discovered exit to Materials (range 15) 121 | -11/Scrapyard | Entered Materials 121 | -10/Materials | Evolved 1 slot: Utility x1 312 | -10/Materials | Build established: Hacker-Mutant 367 | -10/Materials | Identified exit to Mines 367 | -10/Materials | Discovered exit to Mines (range 11) 498 | -10/Materials | Identified exit to Materials 498 | -10/Materials | Discovered exit to Materials (range 15) 777 | -10/Materials | Discovered exit to Materials (range 7) 954 | -10/Materials | Discovered exit to Materials (range 15) 1349 | -10/Materials | Entered Mines 1641 | -10/Mines | Identified exit to Subcaves 1641 | -10/Mines | Discovered exit to Subcaves (range 8) 1731 | -10/Mines | Assembled infested the area 1736 | -10/Mines | Assisted by a Guerilla fighting off Assembled 1809 | -10/Mines | Core integrity fell below 50% 1858 | -10/Mines | Lost 6 parts (1p2n2u1w) 1885 | -10/Mines | Destroyed 12 combat bots 1938 | -10/Mines | Discovered exit to Materials (range 12) 2027 | -10/Mines | A weapon hastily lodged in a ceiling crevice suddenly fell to the ground 2135 | -10/Mines | Core integrity fell below 20% 2762 | -10/Mines | Discovered exit to Materials (range 11) 2921 | -10/Mines | Entered Subcaves 2921 | -10/Subcaves | Accompanied by 2 allies 2926 | -10/Subcaves | Led the pair of lost Derelicts to an unsafe place 3611 | -10/Subcaves | Learned location of Zion (-7) 3611 | -10/Subcaves | Met a Zionite searching for "candidates" 3776 | -10/Subcaves | Shifting Twisted Machinery released Sub. Beam Cannon 3776 | -10/Subcaves | Shifting Twisted Machinery released Sub. Power Source 3829 | -10/Subcaves | Identified exit to Materials 3829 | -10/Subcaves | Discovered exit to Materials (range 13) 4218 | -10/Subcaves | Ambushed by angry Subdweller bent on revenge 4366 | -10/Subcaves | Identified exit to Recycling 4366 | -10/Subcaves | Discovered exit to Recycling (range 11) 4644 | -10/Subcaves | Disturbed a concealed Subdweller 4645 | -10/Subcaves | Destroyed by I8-62U(R) with Subdweller Machine Gun Last Messages --------------- 04350_ Destroyed Lgt. Ion Engine. 04350_ S-10 Pest destroyed. 04360_ Machine disabled. 04363_ Autobeam Turret destroyed. 04363_ Slug penetrates Machine. 04366_ EXIT=FOUND: RECYCLING 04372_ Acquired 7 matter. 04374_ Machine disabled. 04383_ Destroyed Autobeam. 04383_ Autobeam Turret destroyed. 04383_ Slug penetrates Machine. 04386_ Acquired 10 matter. 04395_ Acquired Autobeam. 04398_ Acquired 4 matter. 04400_ Acquired 19 matter. 04407_ Subatomizers dissect the Flight Unit. 04446_ Acquired 2 matter. 04532_ Acquired 16 matter. 04644_ I8-62U(R) angrily emerges from the Twisted Machinery. Map ----- +----------------------------------------------------+ | ?????????????????????????????????????????????????? | | ?????????????????????????????????????????????????? | | ?????????????????????????????????????????????????? | | ?????????????????????????????????????????????????? | | ?????????????????????????????????????????????????? | | ?????????????????????????????????????????????????? | | ?????????????????????????????????????????????????? | | ?????????????????????????????????????????????????? | | ?????????????????????????????????????????????????? | | ?????????????????????????????????????????????????? | | ?????????????????????????????????????????????????? | | ?????????????????????????????????????????????????? | | ?????????????????????????????? ????????????????? | | ????????????????????????????? ???????????????? | | ????????????????????????????? ???????????????? | | ????????????????????????????? ????????????????? | | ???????????????????????###### ?????????????????? | | ???????????????????????###### ?????????????????? | | ???????????????????????## ??????????????????? | | ???????????????????????## #??????????????????? | | ???????????????????????## ##??????????????????? | | ??????????????????????### ##??????????????????? | | ?????????????????######## ##??????????????????? | | ?????????????????## ### ###?????????????????? | | ?????????????????## #$#< #####???????????????? | | ?????????????????### R @ ##############?????? | | ?????????????????## <##< ############# ??? | | ?????????????????## ?## ## #####?? | | ?????????????????????### ## | | ?????????????????????#### ## ## | | ??????????????????????##### ## | | ???????????????????????#### ## | | ?????????????????????????#### #### | | ###???########???????????########## | | ##??# ## ###???????????####### | | #?## ##???????????????### | | #### ########????????#### | | ## ## #" """#?????????### ## | | ### ### # %"#??????????## ####? | | ### ##?# [ # #??????????## ###??? | | ## ##??##* % % ##????????### ###???? | | #???###[ %% >#????????### ####???? | | ##???# ""##????????## #######[ | | "" ###????##### % #?????????##### ##### | | """ ###????????# [ #?????????##### # | | " "%"##???????#" = ""#????????????## ## # | | " "####????##=#####????????????## #### # | | * %%" #??######????????????????## ##### ## | | ##?# #???????????????????#######??# ## | | " # # ### ###???????????????#########?## # # | +----------------------------------------------------+ Best States ------------- Heat Dissipation 25 Energy Generation 18 Energy Capacity 250 Matter Stores 300 Matter Capacity 300 Sight Range 16 Terrain Scan Density 10 Armor Coverage 150 Resistance: KI 35 Resistance: TH 35 Resistance: EX 35 Resistance: EM 35 Resistance: I 35 Resistance: S 35 Resistance: P 35 Core Shielding 20 Evasion (%) 49 Targeting Accuracy 5 Recoil Reduction 2 Offensive Hacking 20 Item Schematics ----------------- None Robot Schematics ------------------ None Fabricated ------------ Nothing Repaired ---------- Nothing Studied --------- None Alien Tech Used ----------------- None Achievements -------------- None Challenges ------------ None Game ------ Seed CatalystGravmagCannon Manual? 0 Play Time 00:22:37 Cumulative 252.5 hours Start 2026.01.06 @ 11:09:31 End 2026.01.06 @ 11:29:32 Sessions 1 Manual Loads 0 Difficulty Explorer Special Mode None Game No. 397 Rogue 0 Adventurer 0 Explorer 397 Win Type - Total 0 Types 0/0/0/0/0/0/0/0/0/0 Lore% 72 Gallery% 69 Achievement% 54 Wizard Run 0 Options --------- Layout 1 ASCII 0 Keyboard 0 Movement Mouse Keybinds 0 Fullscreen 1 Font 24/Smallcaps Map View 50x35 Zoom Use 0% Tactical HUD 1 Map Filters NONE Filters NONE Steam 1 RUN: 9a8e6405-8164-4e35-b806-6dc718103beb